bitfinex-derivatives/quotes_BTCF0:USTF0_20240905
["timestamp","ask_amount","ask_price","bid_price","bid_amount"]
[1725503319432,0.001,57865.0,57864.0,0.12501559]
[1725503319433,0.002,57865.0,57864.0,0.12501559]
[1725503320727,0.00025936,57870.0,57869.0,0.060478]
[1725503320924,0.00025936,57870.0,57869.0,0.691278]
[1725503322242,0.00025936,57870.0,57869.0,0.694278]
[1725503322739,0.00025936,57870.0,57869.0,0.697278]
[1725503323142,0.06552356,57877.0,57876.0,0.060471]
[1725503323330,0.06552356,57877.0,57876.0,0.330471]
[1725503324338,0.07052356,57877.0,57876.0,0.330471]
[1725503325233,0.07052356,57877.0,57876.0,0.331471]
[1725503325437,0.07552356,57877.0,57876.0,0.331471]
[1725503326938,0.07552356,57877.0,57876.0,0.061471]
[1725503327940,0.22481123,57877.0,57871.0,0.24812415]
[1725503328139,0.08881767,57876.0,57874.0,0.330472]
[1725503328442,0.08881767,57875.0,57874.0,0.330472]
[1725503329239,0.15934123,57877.0,57876.0,0.060471]
[1725503329444,0.005,57877.0,57876.0,0.060471]
[1725503329643,0.09381767,57877.0,57876.0,0.060471]
[1725503329843,0.005,57877.0,57876.0,0.060471]
[1725503330450,0.3608,57878.0,57877.0,0.06047]
[1725503330748,0.44961767,57878.0,57877.0,0.33047]
[1725503330948,0.44961767,57878.0,57877.0,0.15616649]
[1725503331142,0.44961767,57878.0,57877.0,0.1398141]
[1725503331443,0.44961767,57878.0,57877.0,0.2002841]
[1725503331651,0.45561767,57878.0,57877.0,0.2002841]
[1725503332439,0.56234765,57878.0,57877.0,0.2002841]
[1725503332640,0.45561767,57878.0,57877.0,0.2002841]
[1725503332841,0.09781767,57878.0,57877.0,0.2002841]
[1725503333153,0.09781767,57878.0,57877.0,0.29189669]
[1725503333444,0.00025936,57882.0,57881.0,0.060465]
[1725503333753,0.08903792,57882.0,57881.0,0.691265]
[1725503333943,0.00025936,57882.0,57881.0,0.691265]
[1725503334244,0.08877856,57895.0,57881.0,1.74045851]
[1725503334446,0.0474,57901.0,57898.0,0.060448]
[1725503334651,0.0474,57901.0,57898.0,0.330448]
[1725503335947,0.01,57899.0,57898.0,0.331448]
[1725503337150,0.019,57899.0,57898.0,0.332448]
[1725503338052,0.019,57899.0,57898.0,0.36403533]
[1725503343354,0.019,57899.0,57898.0,1.48219533]
[1725503344646,0.019,57899.0,57898.0,1.48119533]
[1725503344849,0.01,57899.0,57898.0,1.48119533]
[1725503345343,0.00025913,57904.0,57898.0,1.48019533]
[1725503345543,0.00025913,57904.0,57903.0,0.330442]
[1725503345745,0.00025913,57904.0,57903.0,0.29739781]
[1725503347159,0.00025913,57904.0,57903.0,0.29839781]
[1725503347160,0.00625913,57904.0,57903.0,0.29839781]
[1725503347661,0.00725913,57904.0,57903.0,0.29839781]
[1725503348361,0.01225913,57904.0,57903.0,0.29939781]
[1725503349556,0.01225913,57904.0,57903.0,0.33057099]
[1725503351759,0.59082013,57904.0,57903.0,0.03317318]
[1725503351954,0.07270013,57904.0,57903.0,0.03317318]
[1725503352668,1.25126113,57904.0,57903.0,0.002]
[1725503352866,0.060452,57894.0,57893.0,0.00025913]
[1725503354058,0.060452,57894.0,57893.0,0.00525913]
[1725503354966,0.060452,57894.0,57893.0,0.01025913]
[1725503356172,1.448652,57894.0,57893.0,0.01025913]
[1725503356768,1.178652,57894.0,57893.0,0.01025913]
[1725503357761,1.509104,57894.0,57893.0,0.01025913]
[1725503357954,0.060465,57881.0,57877.0,0.060469]
[1725503358157,0.060465,57881.0,57879.0,0.27]
[1725503359670,0.065465,57881.0,57879.0,0.271]
[1725503360061,0.066465,57881.0,57879.0,0.271]
[1725503360859,0.066465,57881.0,57879.0,0.001]
[1725503361059,0.066465,57881.0,57880.0,0.27]
[1725503361263,0.071465,57881.0,57880.0,0.27]
[1725503361769,0.432265,57881.0,57880.0,0.27]
[1725503362861,0.426265,57881.0,57880.0,0.271]
[1725503363065,0.433265,57881.0,57880.0,0.271]
[1725503364273,0.435265,57881.0,57880.0,0.272]
[1725503366370,0.435265,57881.0,57880.0,0.002]
[1725503367270,1.223585,57881.0,57880.0,0.002]
[1725503368177,0.705265,57881.0,57880.0,0.002]
[1725503370173,0.435265,57881.0,57880.0,0.002]
[1725503372373,0.705265,57881.0,57880.0,0.002]
[1725503377074,0.435265,57881.0,57880.0,0.002]
[1725503377281,0.435265,57881.0,57880.0,0.062466]
[1725503379489,0.3748,57881.0,57880.0,0.062466]
[1725503382489,0.00025913,57886.0,57880.0,0.272]
[1725503382680,0.00025913,57886.0,57885.0,0.060461]
[1725503383875,0.01225913,57886.0,57885.0,0.061461]
[1725503384287,0.01925913,57886.0,57885.0,0.061461]
[1725503384878,0.00725913,57886.0,57885.0,0.060461]
[1725503385083,0.00925913,57886.0,57885.0,0.060461]
[1725503385786,0.00425913,57886.0,57885.0,0.060461]
[1725503386676,0.00325913,57886.0,57885.0,0.060461]
[1725503387378,0.00325913,57886.0,57885.0,0.09180064]
[1725503389578,0.00225913,57886.0,57885.0,0.09180064]
[1725503389887,0.00525913,57886.0,57885.0,0.09180064]
[1725503391693,0.00325913,57886.0,57885.0,0.09180064]
[1725503391878,0.00625913,57886.0,57885.0,0.09180064]
[1725503392387,0.00325913,57886.0,57885.0,0.09180064]
[1725503392587,0.00625913,57886.0,57885.0,0.09180064]
[1725503396994,0.00325913,57886.0,57885.0,0.09180064]
[1725503397194,0.00525913,57886.0,57885.0,0.09180064]
[1725503398087,0.00425913,57886.0,57885.0,0.09180064]
[1725503398591,0.00225913,57886.0,57885.0,0.09180064]
[1725503398983,0.00425913,57886.0,57885.0,0.09180064]
[1725503402796,0.00425913,57886.0,57885.0,0.36180064]
[1725503407996,0.06471913,57886.0,57885.0,0.09180064]
[1725503409102,0.06471913,57886.0,57885.0,0.03133964]
[1725503409293,0.060462,57884.0,57882.0,0.060464]
[1725503409689,0.3608,57883.0,57882.0,0.060464]
[1725503410399,0.3608,57883.0,57874.0,0.06073213]
[1725503410400,0.87908,57883.0,57874.0,0.06073213]
[1725503410597,0.27,57876.0,57874.0,0.06073213]
[1725503410789,0.3608,57883.0,57874.0,0.06073213]
[1725503410994,0.27,57878.0,57874.0,0.06073213]
[1725503411303,0.1508,57877.0,57875.0,0.14752889]
[1725503411498,0.1508,57877.0,57875.0,0.03143168]
[1725503411694,0.1508,57877.0,57874.0,0.06073213]
[1725503411889,0.21127,57877.0,57875.0,0.069471]
[1725503412098,0.060465,57882.0,57875.0,0.009]
[1725503412295,0.060465,57882.0,57881.0,0.27]
[1725503412599,0.060465,57882.0,57877.0,0.27]
[1725503412799,0.060465,57882.0,57879.0,0.060467]
[1725503413791,0.061465,57882.0,57879.0,0.060467]
[1725503414195,0.060465,57882.0,57879.0,0.060467]
[1725503414395,0.060465,57882.0,57881.0,0.003]
[1725503414599,0.060465,57882.0,57881.0,0.063465]
[1725503415200,0.060465,57882.0,57881.0,0.060465]
[1725503415997,0.060465,57882.0,57881.0,0.066465]
[1725503418002,0.060465,57882.0,57881.0,0.006]
[1725503418699,0.060465,57882.0,57881.0,0.03710044]
[1725503420794,0.060465,57882.0,57881.0,0.09756544]
[1725503421595,0.3608,57883.0,57882.0,0.060464]
[1725503422695,0.3608,57883.0,57882.0,0.062464]
[1725503423208,0.3608,57883.0,57882.0,0.064464]
[1725503428211,0.3608,57883.0,57882.0,0.334464]
[1725503430805,0.3608,57883.0,57882.0,0.064464]
[1725503431108,0.6308,57883.0,57882.0,0.064464]
[1725503431817,0.691263,57883.0,57882.0,0.064464]
[1725503434908,0.691263,57883.0,57882.0,0.004]
[1725503436418,0.060472,57875.0,57874.0,0.00025913]
[1725503436603,0.691272,57875.0,57874.0,0.00025913]
[1725503438208,0.693272,57875.0,57874.0,0.02125913]
[1725503440013,0.332472,57875.0,57874.0,0.02125913]
[1725503440216,1.054072,57875.0,57874.0,0.02125913]
[1725503441022,0.332472,57875.0,57874.0,0.02125913]
[1725503441331,1.054072,57875.0,57874.0,0.02125913]
[1725503442011,1.13782926,57875.0,57874.0,0.02125913]
[1725503443120,1.105972,57875.0,57874.0,0.02125913]
[1725503444404,0.384372,57875.0,57874.0,0.02125913]
[1725503444624,1.105972,57875.0,57874.0,0.02125913]
[1725503445318,0.784072,57875.0,57874.0,0.02125913]
[1725503448523,0.423272,57875.0,57874.0,0.02125913]
[1725503448921,0.423272,57875.0,57874.0,0.08173213]
[1725503448922,0.3628,57875.0,57874.0,0.08173213]
[1725503451320,0.6328,57875.0,57874.0,0.08173213]
[1725503455620,0.272,57875.0,57874.0,0.08173213]
[1725503455818,0.6328,57875.0,57874.0,0.08173213]
[1725503461845,0.272,57875.0,57874.0,0.08173213]
[1725503462043,0.4728,57875.0,57874.0,0.08173213]
[1725503465044,0.3628,57875.0,57874.0,0.08173213]
[1725503465348,0.002,57875.0,57874.0,0.08173213]
[1725503465642,0.002,57875.0,57874.0,0.60009213]
[1725503466237,0.05405029,57884.0,57883.0,0.060463]
[1725503466439,0.36200001,57887.0,57885.0,0.060461]
[1725503466440,0.3608,57887.0,57885.0,0.060461]
[1725503468356,0.00225913,57886.0,57885.0,0.060461]
[1725503469045,0.00425913,57886.0,57885.0,0.060461]
[1725503473550,0.00425913,57886.0,57885.0,0.09229901]
[1725503475951,0.00425913,57886.0,57874.0,0.00025913]
[1725503475952,1.12253913,57886.0,57874.0,0.00025913]
[1725503476251,0.330472,57875.0,57874.0,0.03207224]
[1725503476450,0.691272,57875.0,57874.0,0.00025913]
[1725503477042,0.691272,57875.0,57874.0,0.01025913]
[1725503477353,0.691272,57875.0,57874.0,0.02125913]
[1725503477946,0.692272,57875.0,57874.0,0.02125913]
[1725503479148,0.692272,57875.0,57874.0,0.01025913]
[1725503479351,0.692272,57875.0,57874.0,0.02125913]
[1725503479653,0.693272,57875.0,57874.0,0.02125913]
[1725503480857,0.332472,57875.0,57874.0,0.02125913]
[1725503481159,0.693272,57875.0,57874.0,0.02125913]
[1725503481541,0.693272,57875.0,57874.0,0.05214689]
[1725503481748,0.3628,57875.0,57874.0,0.02125913]
[1725503482655,0.3628,57875.0,57874.0,0.08173213]
[1725503483643,0.3628,57875.0,57874.0,0.25003213]
[1725503484059,0.002,57875.0,57874.0,0.25003213]
[1725503484243,0.002,57875.0,57874.0,1.36839213]
[1725503484652,0.002,57875.0,57874.0,0.76839213]
[1725503485158,0.002,57875.0,57874.0,1.36839213]
[1725503489960,0.3608,57883.0,57882.0,0.060464]
[1725503490262,0.3608,57883.0,57882.0,0.330464]
[1725503491965,0.3608,57883.0,57882.0,0.332464]
[1725503492264,0.3608,57883.0,57882.0,0.334464]
[1725503494163,0.3608,57883.0,57882.0,0.174464]
[1725503496872,0.36196001,57894.0,57885.0,0.060461]
[1725503497056,0.3608,57894.0,57893.0,0.170453]
[1725503497455,0.4708,57894.0,57893.0,0.060453]
[1725503497659,1.589,57894.0,57884.0,0.060461]
[1725503497860,0.11,57887.0,57884.0,0.060461]
[1725503498069,0.27,57885.0,57883.0,0.00025913]
[1725503498365,0.060462,57884.0,57883.0,0.00025913]
[1725503498570,0.578742,57884.0,57883.0,0.00025913]
[1725503498868,1.178742,57884.0,57883.0,0.00025913]
[1725503499471,0.578742,57884.0,57883.0,0.00025913]
[1725503501266,1.178742,57884.0,57883.0,0.00125913]
[1725503502074,0.578742,57884.0,57883.0,0.00125913]
[1725503502264,0.32403639,57885.0,57883.0,0.00125913]
[1725503502571,0.27,57885.0,57883.0,0.00125913]
[1725503504465,0.27,57885.0,57883.0,0.00025913]
[1725503504669,0.27,57885.0,57883.0,0.00125913]
[1725503509075,0.27,57885.0,57883.0,0.06172113]
[1725503510981,0.27,57885.0,57884.0,0.060462]
[1725503512176,0.271,57885.0,57884.0,0.060462]
[1725503512968,0.272,57885.0,57884.0,0.060462]
[1725503514780,0.272,57885.0,57884.0,0.09095228]
[1725503516384,0.002,57885.0,57884.0,0.09095228]
[1725503517487,0.272,57885.0,57884.0,0.09095228]
[1725503518479,0.002,57885.0,57884.0,0.09095228]
[1725503520693,0.002,57885.0,57884.0,0.36095228]
[1725503521283,0.002,57885.0,57884.0,1.53969428]
[1725503521483,0.002,57885.0,57884.0,1.54851671]
[1725503522195,0.3608,57891.0,57890.0,0.060456]
[1725503522397,0.3608,57891.0,57890.0,0.330456]
[1725503522589,0.05403802,57900.0,57894.0,0.060452]
[1725503522789,0.05403802,57900.0,57894.0,0.330452]
[1725503523392,0.05403802,57900.0,57894.0,0.060452]
[1725503523393,0.3608,57896.0,57894.0,0.060452]
[1725503523593,0.6308,57896.0,57894.0,0.060452]
[1725503523802,0.05515913,57895.0,57894.0,0.060452]
[1725503524094,0.060455,57891.0,57890.0,0.001]
[1725503524300,0.691255,57891.0,57884.0,0.03049028]
[1725503524499,0.691255,57891.0,57878.0,0.27]
[1725503524500,0.27,57886.0,57885.0,0.060461]
[1725503525292,0.27,57889.0,57888.0,0.060458]
[1725503525801,0.3608,57891.0,57887.0,0.27]
[1725503526595,0.00025913,57895.0,57894.0,0.060452]
[1725503527904,0.01225913,57895.0,57894.0,0.061452]
[1725503529902,0.02425913,57895.0,57894.0,0.062452]
[1725503534714,0.36196001,57903.0,57894.0,1.28]
[1725503534715,0.3608,57903.0,57894.0,1.28]
[1725503535012,0.3608,57903.0,57902.0,0.27]
[1725503535416,0.3608,57908.0,57907.0,0.060438]
[1725503535617,0.3608,57908.0,57907.0,0.330438]
[1725503536721,0.36105913,57913.0,57911.0,0.060434]
[1725503537115,0.36105913,57913.0,57912.0,0.060433]
[1725503538216,0.00025913,57913.0,57912.0,0.061433]
[1725503538416,0.00025913,57913.0,57912.0,0.062433]
[1725503539012,0.36105913,57913.0,57912.0,0.062433]
[1725503539512,0.36105913,57913.0,57912.0,0.09391504]
[1725503539711,0.36105913,57913.0,57912.0,0.09291504]
[1725503539913,0.36405913,57913.0,57912.0,0.09391504]
[1725503540114,0.36405913,57913.0,57912.0,0.09291504]
[1725503540418,0.36605913,57913.0,57912.0,0.09391504]
[1725503541017,0.00525913,57913.0,57912.0,0.09391504]
[1725503541422,0.36605913,57913.0,57912.0,0.09391504]
[1725503541810,0.36505913,57913.0,57912.0,0.09391504]
[1725503542415,0.00425913,57913.0,57912.0,0.09391504]
[1725503545219,0.36505913,57913.0,57912.0,0.09391504]
[1725503545413,0.36505913,57913.0,57912.0,0.03348204]
[1725503545616,0.5619932,57913.0,57902.0,0.36105913]
[1725503545816,0.27,57909.0,57908.0,0.060437]
[1725503546016,0.35873407,57909.0,57908.0,0.060437]
[1725503547016,0.09073407,57909.0,57908.0,0.061437]
[1725503547715,0.09373407,57909.0,57908.0,0.062437]
[1725503548610,0.09373407,57909.0,57908.0,0.03097961]
[1725503548820,0.09373407,57909.0,57908.0,0.060437]
[1725503549922,0.005,57909.0,57908.0,0.060437]
[1725503550329,0.005,57909.0,57908.0,0.330437]
[1725503557721,0.005,57909.0,57908.0,0.060437]
[1725503562238,0.005,57909.0,57908.0,0.330437]
[1725503563634,0.005,57909.0,57908.0,0.060437]
[1725503563937,0.36374106,57909.0,57889.0,0.3608]
[1725503564141,0.27,57903.0,57889.0,0.3608]
[1725503564345,0.25164106,57902.0,57889.0,0.3608]
[1725503564547,0.08874106,57901.0,57900.0,0.14677815]
[1725503564837,0.08874106,57901.0,57886.0,0.1075]
[1725503565048,0.27,57889.0,57888.0,0.00025913]
[1725503565342,0.35874106,57889.0,57888.0,0.00025913]
[1725503565832,0.08874106,57889.0,57888.0,0.00025913]
[1725503566447,0.08874106,57889.0,57888.0,0.33071713]
[1725503566643,0.08874106,57889.0,57888.0,0.34371713]
[1725503566842,0.08874106,57889.0,57888.0,0.35471713]
[1725503567142,0.08874106,57889.0,57888.0,0.32034542]
[1725503568336,0.08874106,57889.0,57888.0,0.05034542]
[1725503568536,0.6308,57892.0,57888.0,0.05034542]
[1725503568537,0.63216,57892.0,57889.0,0.060456]
[1725503568740,0.6308,57892.0,57889.0,0.060456]
[1725503568941,0.6308,57892.0,57888.0,0.05531559]
[1725503568942,0.27,57890.0,57888.0,0.05531559]
[1725503569143,0.1076,57889.0,57888.0,0.024]
[1725503569643,0.1076,57889.0,57885.0,0.060461]
[1725503569950,0.0856,57889.0,57886.0,0.06046]
[1725503570337,0.0856,57889.0,57888.0,0.013]
[1725503570536,0.0856,57889.0,57888.0,0.024]
[1725503571945,0.0866,57889.0,57886.0,0.06046]
[1725503572255,0.0876,57889.0,57886.0,0.07346]
[1725503572850,0.0866,57889.0,57888.0,0.011]
[1725503573047,0.0876,57889.0,57888.0,0.023]
[1725503573651,0.0876,57889.0,57888.0,0.012]
[1725503575155,0.0866,57889.0,57887.0,0.060459]
[1725503575355,0.0876,57889.0,57888.0,0.011]
[1725503575558,0.0876,57889.0,57888.0,0.071458]
[1725503575757,0.0876,57889.0,57888.0,0.083458]
[1725503576260,0.0866,57889.0,57888.0,0.060458]
[1725503576452,0.0876,57889.0,57888.0,0.060458]
[1725503577070,0.0876,57889.0,57888.0,0.072458]
[1725503577970,0.0866,57889.0,57888.0,0.072458]
[1725503578158,0.0876,57889.0,57888.0,0.083458]
[1725503581268,0.002,57889.0,57888.0,0.083458]
[1725503581571,0.272,57889.0,57888.0,0.083458]
[1725503583367,1.450697,57889.0,57888.0,0.023]
[1725503583568,1.811497,57889.0,57888.0,0.023]
[1725503583969,1.86553736,57889.0,57888.0,0.023]
[1725503584474,1.26553736,57889.0,57888.0,0.023]
[1725503584770,0.06046,57887.0,57883.0,0.09203827]
[1725503584979,0.6308,57884.0,57883.0,0.09203827]
[1725503586477,0.6308,57884.0,57883.0,0.09303827]
[1725503586865,0.6308,57884.0,57883.0,0.09503827]
[1725503587671,0.3608,57884.0,57883.0,0.09503827]
[1725503589774,0.3608,57889.0,57888.0,0.060458]
[1725503590080,0.6308,57889.0,57888.0,0.060458]
[1725503590871,0.6348,57889.0,57888.0,0.060458]
[1725503591964,0.6398,57889.0,57888.0,0.060458]
[1725503592971,0.700257,57889.0,57888.0,0.060458]
[1725503605882,0.339457,57889.0,57888.0,0.060458]
[1725503606182,0.540257,57889.0,57888.0,0.060458]
[1725503606384,0.060458,57888.0,57885.0,0.060461]
[1725503606579,0.11,57886.0,57885.0,0.060461]
[1725503608280,0.111,57886.0,57885.0,0.060461]
[1725503608485,0.112,57886.0,57885.0,0.060461]
[1725503609290,0.002,57886.0,57885.0,0.060461]
[1725503612787,0.001,57886.0,57885.0,0.060461]
[1725503612987,0.3608,57890.0,57889.0,0.060457]
[1725503613989,0.3648,57890.0,57889.0,0.060457]
[1725503614697,0.3698,57890.0,57889.0,0.060457]
[1725503616989,0.3698,57890.0,57889.0,0.09173034]
[1725503619181,0.005,57890.0,57889.0,0.09173034]
[1725503619390,0.005,57890.0,57889.0,0.20173034]
[1725503619898,0.3608,57891.0,57890.0,0.060456]
[1725503621093,0.3618,57891.0,57890.0,0.060456]
[1725503621299,0.4718,57891.0,57890.0,0.060456]
[1725503621798,0.4708,57891.0,57890.0,0.060456]
[1725503622394,0.4708,57891.0,57890.0,0.061456]
[1725503622899,0.4708,57891.0,57890.0,0.060456]
[1725503633707,0.3608,57891.0,57890.0,0.060456]
[1725503634199,0.3608,57891.0,57890.0,0.170456]
[1725503640203,0.3608,57891.0,57890.0,0.230912]
[1725503642415,0.3608,57891.0,57890.0,0.171456]
[1725503643208,0.3608,57891.0,57890.0,0.170456]
[1725503646821,0.11,57897.0,57896.0,0.06045]
[1725503647115,0.4708,57897.0,57896.0,0.06045]
[1725503647917,0.4708,57897.0,57896.0,0.06040999]
[1725503648509,0.4778,57897.0,57896.0,0.06140999]
[1725503649404,0.3678,57897.0,57896.0,0.06140999]
[1725503649614,0.4848,57897.0,57896.0,0.06240999]
[1725503652007,0.4848,57897.0,57896.0,0.09430008]
[1725503653016,0.84555999,57897.0,57896.0,0.09430008]
[1725503653220,0.73555999,57897.0,57896.0,0.09430008]
[1725503657124,0.84555999,57897.0,57896.0,0.03389009]
[1725503657331,0.060456,57890.0,57883.0,0.00025913]
[1725503657522,0.3608,57885.0,57884.0,0.060462]
[1725503659129,0.11,57886.0,57885.0,0.060461]
[1725503659318,0.4708,57886.0,57885.0,0.060461]
[1725503660227,0.4708,57886.0,57885.0,0.061461]
[1725503661641,0.53126,57886.0,57883.0,0.00025913]
[1725503661821,0.11,57884.0,57883.0,0.00025913]
[1725503662830,0.170462,57884.0,57883.0,0.00725913]
[1725503663128,1.288742,57884.0,57883.0,0.00725913]
[1725503664620,1.34277843,57884.0,57883.0,0.00725913]
[1725503666628,0.74277843,57884.0,57883.0,0.00725913]
[1725503667528,0.688742,57884.0,57883.0,0.00725913]
[1725503667829,1.288742,57884.0,57883.0,0.00725913]
[1725503668332,0.688742,57884.0,57883.0,0.00725913]
[1725503668629,0.05403643,57885.0,57884.0,0.060462]
[1725503669032,0.3608,57886.0,57885.0,0.060461]
[1725503669436,0.4708,57886.0,57885.0,0.060461]
[1725503671536,0.4708,57886.0,57885.0,0.061461]
[1725503672426,0.3608,57886.0,57885.0,0.061461]
[1725503673728,0.4708,57886.0,57885.0,0.061461]
[1725503682440,0.3608,57886.0,57885.0,0.061461]
[1725503687744,0.3608,57891.0,57885.0,0.061461]
[1725503688041,0.3608,57891.0,57890.0,0.060456]
[1725503688229,0.4495778,57891.0,57890.0,0.04341041]
[1725503690545,0.4545778,57891.0,57890.0,0.04341041]
[1725503691137,0.4605778,57891.0,57890.0,0.04441041]
[1725503691338,0.4605778,57891.0,57890.0,0.04006937]
[1725503692536,0.4605778,57891.0,57890.0,0.07077177]
[1725503694244,0.4605778,57891.0,57890.0,0.0636946]
[1725503696455,0.3718,57891.0,57890.0,0.0636946]
[1725503696848,0.7326,57891.0,57890.0,0.0636946]
[1725503698152,0.011,57891.0,57890.0,0.0636946]
[1725503698356,0.7326,57891.0,57890.0,0.0636946]
[1725503698853,0.7326,57891.0,57883.0,0.00025913]
[1725503699153,0.4708,57884.0,57883.0,0.00025913]
[1725503699453,0.4708,57884.0,57877.0,0.03110933]
[1725503699454,0.060469,57878.0,57877.0,0.03110933]
[1725503699662,0.11,57876.0,57875.0,0.11609721]
[1725503699842,0.11,57876.0,57873.0,0.060473]
[1725503699843,0.170471,57876.0,57873.0,0.060473]
[1725503700245,0.4708,57876.0,57873.0,0.03151707]
[1725503700451,0.4708,57876.0,57869.0,0.060477]
[1725503700452,0.4708,57876.0,57869.0,0.06073613]
[1725503700650,0.4608,57870.0,57869.0,0.06073613]
[1725503700962,0.4548,57870.0,57869.0,0.06073613]
[1725503701348,0.4418,57870.0,57869.0,0.06073613]
[1725503702749,0.502277,57870.0,57869.0,0.00025913]
[1725503702953,0.502277,57870.0,57855.0,0.060492]
[1725503702954,1.5602,57870.0,57855.0,0.060492]
[1725503703257,0.4708,57856.0,57850.0,0.11609721]
[1725503703456,0.4708,57856.0,57850.0,0.060497]
[1725503703457,0.4708,57851.0,57850.0,0.060497]
[1725503704062,0.3608,57851.0,57850.0,0.060497]
[1725503706455,0.3628,57851.0,57850.0,0.060497]
[1725503708862,0.3618,57851.0,57850.0,0.060497]
[1725503709550,0.6318,57851.0,57850.0,0.060497]
[1725503709957,0.3618,57851.0,57850.0,0.060497]
[1725503710155,0.3608,57851.0,57850.0,0.060497]
[1725503710761,0.3638,57851.0,57850.0,0.060497]
[1725503711953,0.3658,57851.0,57850.0,0.060497]
[1725503712557,0.3638,57851.0,57850.0,0.060497]
[1725503712857,0.3668,57851.0,57850.0,0.060497]
[1725503713557,0.3638,57851.0,57850.0,0.060497]
[1725503713957,0.3618,57851.0,57850.0,0.060497]
[1725503715165,0.001,57851.0,57850.0,0.060497]
[1725503715360,0.002,57851.0,57850.0,0.060497]
[1725503715869,0.002,57851.0,57850.0,1.600355]
[1725503716059,0.001,57851.0,57850.0,1.600355]
[1725503716369,0.00025913,57856.0,57855.0,0.060493]
[1725503716963,0.00025913,57856.0,57855.0,1.509506]
[1725503717664,0.00025913,57856.0,57855.0,1.870306]
[1725503717856,0.00225913,57856.0,57855.0,1.870306]
[1725503718455,1e-08,57856.0,57855.0,1.870306]
[1725503718663,0.6308,57874.0,57861.0,0.060486]
[1725503718865,0.3608,57867.0,57866.0,0.27]
[1725503719363,0.3608,57867.0,57866.0,0.330481]
[1725503720257,0.006,57867.0,57866.0,0.330481]
[1725503721773,0.003,57867.0,57866.0,0.330481]
[1725503721955,0.006,57867.0,57866.0,0.330481]
[1725503722357,0.006,57867.0,57866.0,1.47963149]
[1725503723160,0.003,57867.0,57866.0,1.47963149]
[1725503723361,0.004,57867.0,57866.0,1.47963149]
[1725503723567,0.002,57867.0,57866.0,1.47963149]
[1725503724071,0.002,57867.0,57866.0,1.54011249]
[1725503724570,0.001,57867.0,57866.0,1.54011249]
[1725503725467,0.00025913,57872.0,57871.0,0.060476]
[1725503725672,0.00025913,57872.0,57871.0,0.330476]
[1725503726764,0.00225913,57872.0,57871.0,0.330476]
[1725503727567,0.00025913,57872.0,57871.0,0.330476]
[1725503727964,0.00225913,57872.0,57871.0,0.330476]
[1725503728167,0.00225913,57872.0,57871.0,0.331476]
[1725503728763,0.00225913,57872.0,57871.0,0.330476]
[1725503728961,0.00525913,57872.0,57871.0,0.330476]
[1725503729371,0.09405499,57872.0,57871.0,0.330476]
[1725503730077,0.09405499,57872.0,57871.0,0.29742841]
[1725503731273,0.09105499,57872.0,57871.0,0.29742841]
[1725503731670,0.09005499,57872.0,57871.0,0.29742841]
[1725503732384,0.00125913,57872.0,57871.0,0.29742841]
[1725503733270,0.36105913,57872.0,57871.0,0.29742841]
[1725503733463,0.00025913,57872.0,57871.0,0.29742841]
[1725503734965,0.00025913,57872.0,57871.0,0.41838041]
[1725503734966,1.3e-07,57872.0,57871.0,0.41838041]
[1725503735279,0.27,57887.0,57882.0,0.060464]
[1725503735582,0.27,57884.0,57882.0,0.060464]
[1725503736178,0.27,57884.0,57878.0,0.060468]
[1725503736179,0.6308,57884.0,57878.0,0.060468]
[1725503736483,0.6308,57879.0,57878.0,0.060468]
[1725503737070,0.3608,57879.0,57878.0,0.060468]
[1725503737775,0.3648,57879.0,57878.0,0.060468]
[1725503738176,0.3728,57879.0,57878.0,0.061468]
[1725503738681,0.3728,57879.0,57878.0,0.09286643]
[1725503739073,0.3738,57879.0,57878.0,0.09286643]
[1725503739277,0.3698,57879.0,57878.0,0.09286643]
[1725503739483,0.3778,57879.0,57878.0,0.09286643]
[1725503739879,0.3698,57879.0,57878.0,0.09286643]
[1725503740082,0.3798,57879.0,57878.0,0.09286643]
[1725503745278,0.3708,57879.0,57878.0,0.09186643]
[1725503745588,0.3708,57879.0,57878.0,0.09286643]
[1725503746083,0.45959837,57879.0,57878.0,0.09286643]
[1725503746473,0.44959837,57879.0,57878.0,0.09286643]
[1725503747079,0.45659837,57879.0,57878.0,0.09286643]
[1725503747583,0.46359837,57879.0,57878.0,0.09286643]
[1725503748685,0.3748,57879.0,57878.0,0.09286643]
[1725503750079,0.4858,57879.0,57878.0,0.09286643]
[1725503750279,0.4788,57879.0,57878.0,0.09186643]
[1725503750480,0.4868,57879.0,57878.0,0.09286643]
[1725503750678,0.3768,57879.0,57878.0,0.09286643]
[1725503751285,0.3768,57879.0,57878.0,0.20286643]
[1725503752282,0.016,57879.0,57878.0,0.20286643]
[1725503753077,0.016,57879.0,57878.0,0.26176643]
[1725503756086,0.016,57879.0,57878.0,0.42176643]
[1725503759390,0.016,57879.0,57878.0,0.09286643]
[1725503761502,0.016,57879.0,57878.0,0.15333543]
[1725503761793,0.016,57879.0,57878.0,1.74375543]
[1725503761994,0.00025913,57888.0,57887.0,0.060459]
[1725503762195,0.00025913,57888.0,57887.0,0.330459]
[1725503763006,0.01425913,57888.0,57887.0,0.331459]
[1725503763302,0.02825913,57888.0,57887.0,0.752718]
[1725503763500,0.02825913,57888.0,57887.0,0.78310366]
[1725503763501,0.1170575,57888.0,57887.0,0.78310366]
[1725503764008,0.0890575,57888.0,57887.0,0.78610366]
[1725503764508,0.0900575,57888.0,57887.0,0.78610366]
[1725503765596,0.0900575,57888.0,57887.0,0.79310366]
[1725503765998,0.0900575,57888.0,57887.0,0.80010366]
[1725503766393,0.0900575,57888.0,57887.0,0.79710366]
[1725503766599,0.0900575,57888.0,57887.0,0.79510366]
[1725503767503,0.00125913,57888.0,57887.0,0.79510366]
[1725503767805,0.00125913,57888.0,57887.0,0.43430366]
[1725503770102,0.00125913,57888.0,57887.0,0.37384466]